Cogmind - Beta 14 @@@ ROGUE MODE // 2024.11.29 @ 17:16:01 Player: Amberulez Result: Destroyed by 25-ZU1(R) with Subdweller Beam Cannon Performance ------------- Evolutions (0) 0 Regions Visited (3) 600 Robots Destroyed (29) 145 Value Destroyed (678) 678 Prototype IDs (0) 0 Alien Tech Used (0) 0 Bonus (-12) -12 TOTAL SCORE: 1411 Bonus ------- High Alert Combat Kills 40 Follower Combat Kills 88 Friendly Fire -140 Cogmind --------- Core Integrity 0/250 Matter 279/300 Energy 248/250 System Corruption 0% Temperature Cool (9) Movement Rolling (117) Ox1 Location -10/Subcaves Parts ------- > --- POWER (1) -------- Ion Engine > --- PROPULSION (2) --- Compact Wheel Subdweller Monowheel > --- UTILITY (2) ------ High-capacity Storage Unit Targeting Computer > --- WEAPON (2) ------- Light Assault Rifle > --- INVENTORY (20) --- Ion Engine Light Ion Engine Light Treads Light Treads Wheel Heat Sink Large Storage Unit High-capacity Battery (250) Compact Matter Pod (150) Compact Matter Pod (150) Targeting Computer Targeting Computer Targeting Computer Targeting Computer ECM Suite ECM Suite Small Laser Light Cannon Multitool Peak State ------------ > --- POWER ------------ Ion Engine > --- PROPULSION ------- Compact Wheel Subdweller Monowheel > --- UTILITY ---------- High-capacity Storage Unit Targeting Computer > --- WEAPON ----------- Light Assault Rifle Grenade Launcher > --- INVENTORY -------- Ion Engine Light Ion Engine Light Treads Light Treads Wheel Heat Sink Large Storage Unit High-capacity Battery Compact Matter Pod Compact Matter Pod Targeting Computer Targeting Computer Targeting Computer Targeting Computer ECM Suite ECM Suite Small Laser Light Cannon Multitool [Rating: 10] Favorites ----------- Power Ion Engine Engine Ion Engine Propulsion Wheel Treads Light Treads Wheel Wheel Utility Targeting Computer Storage High-capacity Storage Unit Processor Targeting Computer Protection Light Armor Plating Weapon Assault Rifle Energy Gun EM Pulse Gun Ballistic Gun Assault Rifle Ballistic Cannon Light Cannon Launcher Grenade Launcher Build | -11 -10 -10 -10 ------- Run | Yrd Mat Min Sub Slots Evolved . | . . . . Power . | . . . . Propulsion . | . . . . Utility . | . . . . Weapon . | . . . . Parts Attached 23 | 6 8 3 6 Power 2 | 1 . . 1 Engine 2 | 1 . . 1 Core . | . . . . Reactor . | . . . . Propulsion 7 | 2 2 2 1 Treads 2 | 2 . . . Leg . | . . . . Wheel 5 | . 2 2 1 Hover . | . . . . Flight . | . . . . Utility 5 | 1 4 . . Device . | . . . . Storage 3 | 1 2 . . Processor 1 | . 1 . . Hackware . | . . . . Protection 1 | . 1 . . Artifact . | . . . . Weapon 9 | 2 2 1 4 Energy Gun 2 | 1 . . 1 Energy Cannon . | . . . . Ballistic Gun 3 | 1 1 . 1 Ballistic Cannon 2 | . 1 1 . Launcher 2 | . . . 2 Special Weapon . | . . . . Impact Weapon . | . . . . Slashing Weapon . | . . . . Piercing Weapon . | . . . . Special Melee Weapon . | . . . . Unidentified Prototypes . | . . . . Parts Lost 3 | . . . 3 Power . | . . . . Propulsion 1 | . . . 1 Utility . | . . . . Weapon 2 | . . . 2 Highest Loss Streak 2 | . . . 2 To Critical Strikes . | . . . . Average Slot Usage (%) 99 | . 98 100 96 Engine 14 | . 14 14 14 Treads 7 | . 17 . . Wheel 20 | . 10 28 27 Storage 14 | . 14 14 14 Processor 9 | . 3 14 14 Protection 3 | . 9 . . Ballistic Gun 20 | . 18 24 11 Ballistic Cannon 6 | . 7 3 11 Peak Build Rating 10 | 6 9 9 10 Average Rating 8 | 4 7 8 8 On Entrance 6 | . 6 9 9 Naked Turns . | . . . . Heaviest Build 51 | 14 48 49 51 Greatest Support 40 | 40 40 26 36 Greatest Overweight (x) 10 | . 10 4 1 Average Overweight (x) 1 | . . 1 1 Largest Inventory Capacity 20 | 8 20 20 20 Average Capacity 17 | 6 15 20 20 Most Carried 20 | 6 20 20 20 Average Carried 16 | 3 12 19 19 Final Capacity 20 | 8 20 20 20 Final Carried 20 | 6 20 20 19 Class Distribution -------------------- 100% | Mutant Dominant Class ---------------- Mutant | -10/Materials Mutant | -10/Mines Mutant | -10/Subcaves Resources | -11 -10 -10 -10 ----------- Run | Yrd Mat Min Sub Matter Collected 864 | 216 424 94 130 Remotely . | . . . . Salvage Created 843 | . 722 72 49 Parts 57 | . 47 8 2 Haulers Intercepted 1 | . 1 . . Recyclers Shooed 2 | . 1 1 . Parts Field Recycled . | . . . . Retrieved Matter . | . . . . Parts Self-Destructed 7 | . . . 7 Prevented . | . . . . Kills | -11 -10 -10 -10 ------- Run | Yrd Mat Min Sub Combat Hostiles Destroyed 22 | . 21 . 1 Guns 8 | . 7 . 1 Cannons 12 | . 12 . . AOE 2 | . 2 . . Classes Destroyed 8 | . 6 1 1 Worker 2 | . 1 1 . Builder 1 | . 1 . . Tunneler 1 | . . 1 . Hauler 1 | . 1 . . Operator 1 | . 1 . . Swarmer 6 | . 6 . . Grunt 16 | . 15 1 . Subdweller 1 | . . . 1 Best Kill Streak 4 | . 4 1 1 Combat Bots Only 4 | . 4 . 1 Max Kills in Single Turn 2 | . 2 1 1 Gunslinging . | . . . . Exploded 2 | . 2 . . Melee . | . . . . Uniques/NPCs Destroyed . | . . . . Combat | -11 -10 -10 -10 -------- Run | Yrd Mat Min Sub Hostile Shots Fired 111 | . 68 . 43 Missed 28 | . 18 . 10 Damage Taken 1060 | . 534 7 519 Core 251 | . 69 6 176 Absorbed by Shields . | . . . . Core Remaining (%) 100 | 100 . . . Volleys Fired 83 | . 58 7 18 Largest 2 | . 2 2 2 Hottest 65 | . 60 55 65 Shots Fired 161 | . 116 14 31 Gun 105 | . 76 11 18 Cannon 49 | . 40 3 6 Launcher 7 | . . . 7 Special . | . . . . Kinetic 145 | . 113 14 18 Thermal . | . . . . Explosive 7 | . . . 7 Electromagnetic 9 | . 3 . 6 Robot Hit Streak 12 | . 12 12 5 Robot Miss Streak 4 | . 4 2 1 Penetration Max . | . . . . Secondary Targets . | . . . . Shots Hit Robots 103 | . 77 10 16 Core Hits 47 | . 34 5 8 Critical Kills . | . . . . Critical Parts Destroyed 1 | . 1 . . Critical Strikes 2 | . 2 . . Destroy 1 | . 1 . . Blast 1 | . 1 . . Melee Attacks . | . . . . Impact . | . . . . Slashing . | . . . . Piercing . | . . . . Sneak Attacks . | . . . . Combat Hostiles . | . . . . Follow-up Attacks . | . . . . Damage Inflicted 1655 | . 1225 132 298 Guns 868 | . 664 79 125 Cannons 465 | . 417 48 . Explosions 312 | . 139 . 173 Melee . | . . . . Ramming 10 | . 5 5 . Kinetic 1256 | . 1057 127 72 Thermal 59 | . 59 . . Explosive 173 | . . . 173 Electromagnetic 157 | . 104 . 53 Impact . | . . . . Slashing . | . . . . Piercing . | . . . . Highest Corruption . | . . . . Average Corruption . | . . . . Corruption Purged . | . . . . Corruption Blocked . | . . . . Overload Shots . | . . . . Overflow Damage . | . . . . Projectiles . | . . . . Explosions . | . . . . Melee . | . . . . Knockbacks 9 | . 8 1 . Impact . | . . . . Kinetic 8 | . 7 1 . Secondary 1 | . 1 . . Self-Inflicted Damage 17 | . . 2 15 Shots 1 | . . . 1 Rammed 6 | . 4 2 . Targets Rammed 6 | . 4 2 . Kicked . | . . . . Crushed . | . . . . Highest Temperature 73 | . 73 28 . Average Temperature 16 | . 16 14 . Received Heat Transfer 384 | . 243 . 141 Siege Activations . | . . . . Robots Corrupted . | . . . . Combat Hostiles . | . . . . Parts Fried . | . . . . Impact Corruptions . | . . . . Robots Melted . | . . . . Combat Hostiles . | . . . . Parts Melted . | . . . . Heat Transferred 50 | . 50 . . Parts Sabotaged . | . . . . Parts Stolen . | . . . . Parts Stripped . | . . . . Power Chain Reactions 1 | . 1 . . Alert | -11 -10 -10 -10 ------- Run | Yrd Mat Min Sub Peak Influence 545 | . 545 184 . Initial 179 | . . 179 . Average 154 | . 279 62 . Maximum Alert Level 2 | . 2 . . Low Security (%) 77 | 100 48 100 . Level 1 4 | . 10 . . Level 2 18 | . 41 . . Level 3 . | . . . . Level 4 . | . . . . Level 5 . | . . . . High Security . | . . . . Max Security . | . . . . Squads Dispatched 5 | . 5 . . Investigation 2 | . 2 . . Extermination . | . . . . Reinforcement 3 | . 3 . . Assault . | . . . . Garrison . | . . . . Intercept . | . . . . Searches Triggered . | . . . . Construction Impeded . | . . . . Haulers Reinforced . | . . . . Active Scanning Responses . | . . . . Cargo Convoy Interrupts . | . . . . Stealth | -11 -10 -10 -10 --------- Run | Yrd Mat Min Sub Distress Signals 1 | . 1 . . Communications Jammed . | . . . . Distress Signals . | . . . . Times Spotted 47 | . 36 . 11 Peak Tracking Total 10 | . 10 . 6 Tactical Retreats 6 | . 2 . 4 Traps | -11 -10 -10 -10 ------- Run | Yrd Mat Min Sub Traps Triggered 1 | . 1 . . Indirectly . | . . . . Trap Hack Attempts . | . . . . Triggered . | . . . . Disarmed . | . . . . Reprogrammed . | . . . . Reused . | . . . . Traps Extracted . | . . . . Installed . | . . . . Triggered . | . . . . Machines | -11 -10 -10 -10 ---------- Run | Yrd Mat Min Sub Machines Disabled 3 | . 1 . 2 Max in Single Turn 1 | . 1 . 1 Machines Repaired . | . . . . Machines Dismantled . | . . . . Machines Sabotaged . | . . . . Overloaded Fab Kills . | . . . . Hacking | -11 -10 -10 -10 --------- Run | Yrd Mat Min Sub Machines Accessed 4 | . 4 . . Terminals 4 | . 4 . . Fabricators . | . . . . Repair Stations . | . . . . Recycling Units . | . . . . Scanalyzers . | . . . . Garrison Access . | . . . . Total Hacks 10 | . 10 . . Successful 1 | . 1 . . Failed 9 | . 9 . . Catastrophic 1 | . 1 . . Database Lockouts . | . . . . Manual 2 | . 2 . . Terminals 10 | . 10 . . Fabricators . | . . . . Repair Stations . | . . . . Recycling Units . | . . . . Scanalyzers . | . . . . Garrison Access . | . . . . Terminal Hacks 1 | . 1 . . Hauler Manifests 1 | . 1 . . Fabricator Hacks . | . . . . Repair Station Hacks . | . . . . Recycling Unit Hacks . | . . . . Scanalyzer . | . . . . Garrison Access Hacks . | . . . . Unauthorized Hacks . | . . . . Terminals . | . . . . Fabricators . | . . . . Repair Stations . | . . . . Recycling Units . | . . . . Scanalyzers . | . . . . Garrison Access . | . . . . Data Cores Recovered . | . . . . Used . | . . . . Hacking Detections 4 | . 4 . . Full Trace Events 2 | . 2 . . Feedback Events . | . . . . Feedback Blocked . | . . . . Robot Schematics Acquired . | . . . . Robots Built . | . . . . Authchips . | . . . . Time . | . . . . Total Robot Build Rating . | . . . . Part Schematics Acquired . | . . . . Parts Built . | . . . . Authchips . | . . . . Time . | . . . . Total Part Build Rating . | . . . . Parts Repaired . | . . . . Time . | . . . . Parts Recycled . | . . . . Recycled Matter . | . . . . Retrieved Matter . | . . . . Retrieved Components . | . . . . Parts Scanalyzed . | . . . . Part Schematics Acquired . | . . . . Parts Damaged . | . . . . Bothacking | -11 -10 -10 -10 ------------ Run | Yrd Mat Min Sub Used RIF Installer . | . . . . Robots Hacked . | . . . . Non-combat . | . . . . Combat . | . . . . Robot Hacks Applied . | . . . . Relay Couplers Released . | . . . . Fabnet Peak Effective % . | . . . . Robots Rewired . | . . . . Allies Hacked . | . . . . Hacks Repelled . | . . . . Allies | -11 -10 -10 -10 -------- Run | Yrd Mat Min Sub Total Allies 3 | . . 3 . Largest Group 3 | . . 3 2 Highest-Rated Group 40 | . . 40 32 Highest-Rated Ally 16 | . . 16 16 Total Orders . | . . . . Ally Attacks 31 | . . . 31 Total Damage 432 | . . . 432 Kills 6 | . . . 6 Allies Corrupted . | . . . . Allies Melted . | . . . . Intel | -11 -10 -10 -10 ------- Run | Yrd Mat Min Sub Robot Analysis Total . | . . . . Derelict Logs Recovered 1 | . . 1 . Drone Launches . | . . . . Drone Recoveries . | . . . . Exploration | -11 -10 -10 -10 ------------- Run | Yrd Mat Min Sub Turns Passed 2528 | 91 972 1170 295 Spaces Moved 1754 | 51 522 982 199 Core 5 | 4 1 . . Treads 316 | 47 269 . . Legs . | . . . . Wheels 1433 | . 252 982 199 Hover . | . . . . Flight . | . . . . Fastest Speed 50 | 50 95 105 105 Average Speed 116 | 151 132 108 106 Slowest Speed 550 | 160 550 140 117 Overloaded Moves . | . . . . Propulsion Burnouts . | . . . . Robots Hopped . | . . . . Cave-ins Triggered . | . . . . Exploration Rate (%) 45 | 4 68 101 10 Regions Visited 3 Branch Regions 2 Pre-discovered Areas 1 | . . 1 . Known Exits Taken . | . . . . Unknown Exits Taken 3 | 1 1 1 . Scrap Searched 1 | . . 1 . Spaces Dug 9 | . . . 9 Terrain Destroyed 47 | . 3 . 44 Melee . | . . . . Projectile . | . . . . AOE 47 | . 3 . 44 Terrain Rammed . | . . . . Walls Destroyed . | . . . . Machines Disabled . | . . . . Actions | -11 -10 -10 -10 --------- Run | Yrd Mat Min Sub Total 2072 | 62 686 1070 254 Wait 174 | . 76 70 28 Move 1751 | 50 521 981 199 Hop . | . . . . Pick Up 23 | 6 12 3 2 Fast Attach 12 | 6 5 1 . Attach 3 | . 1 . 2 Detach 4 | . 4 . . Swap 8 | . 2 2 4 Drop 8 | . 3 4 1 Fire 83 | . 58 7 18 Melee . | . . . . Ram 2 | . . 2 . Kick . | . . . . Crush 4 | . 4 . . Escape Stasis . | . . . . Rewire . | . . . . Trap . | . . . . Miscellaneous . | . . . . Route ------- -11/Scrapyard -10/Materials (discovered 2 exits: [*Mat] / [*Min]) -10/Mines (discovered 3 exits: [*Mat x2] / [*Sub]) -10/Subcaves (discovered 1 exit: [*Rec]) History --------- Turn | Location | Event 7 | -11/Scrapyard | Discovered new exit (range 15) 92 | -11/Scrapyard | Entered Materials 309 | -10/Materials | Build established: Mutant 767 | -10/Materials | Discovered new exit (range 16) 1009 | -10/Materials | Discovered new exit (range 7) 1064 | -10/Materials | Entered Mines 1064 | -10/Mines | Discovered new exit (range 10) 1312 | -10/Mines | Found a hidden stash of uninstalled traps 1458 | -10/Mines | Assisted by bots powering up and referring to "LRC-V3" 1577 | -10/Mines | Learned location of Zion (-6) 1590 | -10/Mines | Discovered new exit (range 5) 1746 | -10/Mines | Discovered new exit (range 6) 2234 | -10/Mines | Entered Subcaves 2234 | -10/Subcaves | Accompanied by 2 allies 2415 | -10/Subcaves | Discovered new exit (range 11) 2469 | -10/Subcaves | Core integrity fell below 50% 2529 | -10/Subcaves | Core integrity fell below 20% 2529 | -10/Subcaves | Destroyed by 25-ZU1(R) with Subdweller Beam Cannon Last Messages --------------- 02467_ RU-29O(R): "MADSUB!" 02471_ Subatomizers dissect the Wheel. 02474_ Wheel destroyed. 02481_ Subatomizers dissect the Wheel. 02484_ The unstable cave ceiling collapses. 02488_ EM Pulse Gun destroyed. 02490_ RU-29O(R) misfires. 02492_ Subatomizers dissect the Wheel, destroying it. 02493_ The unstable cave ceiling collapses. 02497_ RU-29O(R) destroyed. 02505_ Subatomizers dissect the Corrupted Disposable Heat Sink. 02509_ Acquired Multitool. 02512_ The unstable cave ceiling collapses. 02519_ Subatomizers dissect the Corrupted Disposable Heat Sink. 02522_ Acquired 49 matter. 02525_ Grenade Launcher destroyed. 02528_ The unstable cave ceiling collapses. Map ----- +----------------------------------------------------+ | ?# # #???????????## ## # #????? | | ?# #??????????## ###### ##????? | | ?# #?????????## ##???? ##?????? | | ?# #??????#### ##????? ##??????? | | ?## ########## ##???####% # #?????#????????? | | ??####?????????# #???##&#%# ####??????????????? | | ???????????????# ##??# =%# ##?????????????????? | | ???????????????# ##?#= *###??????????????????? | | ???????????????# ### #######?#????????????? | | ???????????????# ## # # ##???????????? | | ?????????????# ## #???????????? | | ??????????? ### #???????????? | | ??????????# ## # #### #?????????? | | ??????????## ?## ####??### # # #??????? | | ???????????## ?# ##?????? # #??????? | | ????????????## ### #????? #??????? | | ?????????????###?# ####???## # #??????? | | ?????????????????# #????? ### #??????? | | ?????????????????## ####### <#??? #??????? | | ?????????????????# = % % #??? #?????? | | ?????????????????# %% #? "###?????#?????? | | ?????????????????#### #? "#?????????????? | | ????????????????????# ###" """??????????????? | | ????????????????????# ##?########????? ?????? | | ????????????????????#% #### ### "## ?????? | | ???????????????????##* @ # # !" ??????? | | ???????????????????# ! & " ??????? | | ???????????????????# [ " ??????? | | ???????????????????# # # # ""???????? | | ???????????????????### ####### ### "????????? | | ?????????????????????## ?????? #????????????? | | ?????????????????????? ?????? #??????????? | | ?????????????????????# ##"#?????? ""#??????????? | | ?????????????????????##??##???????#####??????????? | | ?????????????????????????????????????????????????? | | ?????????????????????????????????????????????????? | | ?????????????????????????????????????????????????? | | ?????????????????????????????????????????????????? | | ?????????????????????????????????????????????????? | | ?????????????????????????????????????????????????? | | ?????????????????????????????????????????????????? | | ?????????????????????????????????????????????????? | | ?????????????????????????????????????????????????? | | ?????????????????????????????????????????????????? | | ?????????????????????????????????????????????????? | | ?????????????????????????????????????????????????? | | ?????????????????????????????????????????????????? | | ?????????????????????????????????????????????????? | | ?????????????????????????????????????????????????? | | ?????????????????????????????????????????????????? | +----------------------------------------------------+ Best States ------------- Heat Dissipation 25 Energy Generation 10 Energy Capacity 250 Matter Stores 300 Matter Capacity 300 Sight Range 16 Terrain Scan Density 10 Armor Coverage 150 Evasion (%) 41 Targeting Accuracy 5 Recoil Reduction 2 Item Schematics ----------------- None Robot Schematics ------------------ None Fabricated ------------ Nothing Alien Tech Used ----------------- None Achievements -------------- None Challenges ------------ None Game ------ Seed JunkCargoRipteeth Manual? 0 Play Time 00:18:44 Cumulative 40.5 hours Start 2024.11.29 @ 16:57:41 End 2024.11.29 @ 17:16:01 Sessions 1 Manual Loads 0 Difficulty Rogue Special Mode None Game No. 53 Rogue 53 Adventurer 0 Explorer 0 Win Type - Total 1 Types 1/0/0/0/0/0/0/0/0 Lore% 16 Gallery% 30 Achievement% 30 Wizard Run 0 Options --------- Layout 2 ASCII 0 Keyboard 1 Movement Arrows Keybinds 0 Fullscreen 1 Font 24/Proggy Map View 50x44 Zoom Use 0% Tactical HUD 1 Map Filters NONE Filters NONE Steam 1 RUN: 37c22044-564c-4331-8a7e-7f8e2f7ccb91